[Event "RUS-chTW Premier 2019"]
[Site "Sochi"]
[Date "2019.05.05"]
[Round "5.1"]
[White "Kosteniuk, Alexandra"]
[Black "Bodnaruk, Anastasia"]
[Result "1-0"]
[ECO "B91"]
[WhiteElo "2546"]
[BlackElo "2431"]
[Annotator "ChessBase"]
[PlyCount "89"]
[EventDate "2019.05.01"]
[EventType "team-tourn"]
[EventCountry "RUS"]
[SourceTitle "playchess.com"]
[Source "ChessBase"]
[SourceQuality "1"]
[TimeControl "40/5400+30:1800+30"]

1. e4 {[%emt 0:00:00]} c5 {[%emt 0:00:00]} 2. Nf3 {[%emt 0:00:00]} d6 {[%emt 0:00:00]} 3. d4 {[%emt 0:00:00]} cxd4 {[%emt 0:00:00]} 4. Nxd4 {[%emt 0:00:00]} Nf6 {[%emt 0:00:00]} 5. Nc3 {[%emt 0:00:04]} a6 {[%emt 0:00:00]} 6. g3 {[%emt 0:00:17]} e5 {[%emt 0:01:15]} 7. Nde2 {[%emt 0:00:22]} Be7 {[%emt 0:03:01]} 8. Bg2 {[%emt 0:00:20]} b5 {[%emt 0:01:19]} 9. Nd5 {[%emt 0:00:52]} Nxd5 {[%emt 0:00:25]} 10. Qxd5 {[%emt 0:00:06]} Ra7 {[%emt 0:00:03]} 11. Be3 {[%emt 0:00:35]} Be6 {[%emt 0:01:18]} 12. Qd2 {[%emt 0:02:38]} Rb7 {[%emt 0:10:13]} 13. Nc3 {[%emt 0:04:15]} b4 {[%emt 0:04:57]} 14. Nd5 {[%emt 0:00:46]} Bxd5 {[%emt 0:00:20]} 15. Qxd5 {[%emt 0:00:07]} Qc7 {[%emt 0:03:01]} 16. O-O {[%emt 0:01:49]} O-O {[%emt 0:03:09]} 17. Rfc1 {[%emt 0:02:00]} Nd7 {[%emt 0:09:33]} 18. c3 {[%emt 0:03:46]} Nc5 {[%emt 0:05:44]} 19. b3 {[%emt 0:09:25]} a5 {[%emt 0:05:44]} 20. Bf1 {[%emt 0:05:47]} g6 {[%emt 0:14:31]} 21. Bc4 {[%emt 0:01:54]} Kg7 {[%emt 0:01:01]} 22. cxb4 {[%emt 0:01:17]} Rxb4 {[%emt 0:10:56]} 23. a3 {[%emt 0:03:46]} Rbb8 {[%emt 0:00:03]} 24. Qd2 {[%emt 0:10:38]} Kh8 {[%emt 0:05:14]} 25. Bh6 {[%emt 0:02:43]} Rfd8 {[%emt 0:09:27]} 26. Bxf7 {[%emt 0:09:18]} Qd7 {[%emt 0:02:25]} 27. Be3 {[%emt 0:14:46]} Nxe4 {[%emt 0:02:47]} 28. Qxa5 {[%emt 0:00:05]} Bg5 {[%emt 0:02:05]} 29. Rc7 {[%emt 0:04:30]} Qg4 {[%emt 0:02:58]} 30. Ba7 {[%emt 0:05:52]} Rbc8 {[%emt 0:01:48]} 31. Bd5 {[%emt 0:02:39]} Nd2 {[%emt 0:00:09]} 32. Rxc8 {[%emt 0:01:47]} Rxc8 {[%emt 0:00:21]} 33. Qa6 {[%emt 0:01:03]} Qd7 {[%emt 0:01:11]} 34. Rd1 {[%emt 0:00:35]} Qc7 {[%emt 0:01:18]} 35. Be3 {[%emt 0:03:24]} Bxe3 {[%emt 0:00:22]} 36. fxe3 {[%emt 0:00:01]} Qc5 {[%emt 0:00:38]} 37. Rxd2 {[%emt 0:01:29]} Qxe3+ {[%emt 0:00:37]} 38. Rf2 {[%emt 0:00:05]} Rf8 {[%emt 0:00:34]} 39. Qe2 {[%emt 0:01:51]} Qd4 {[%emt 0:00:03]} 40. Qd2 {[%emt 0:00:00]} Qc5 {[%emt 0:00:00]} 41. b4 {[%emt 0:02:39]} Rxf2 {[%emt 0:03:53]} 42. Qxf2 {[%emt 0:02:15]} Qxd5 {[%emt 0:00:03]} 43. Qf8+ {[%emt 0:00:06]} Qg8 {[%emt 0:00:03]} 44. Qxg8+ {[%emt 0:00:10]} Kxg8 {[%emt 0:00:01]} 45. b5 {[%emt 0:00:10]} 1-0

[Event "RUS-chTW Premier 2019"]
[Site "Sochi"]
[Date "2019.05.05"]
[Round "5.4"]
[White "Styazhkina, Anna"]
[Black "Bivol, Alina"]
[Result "1-0"]
[ECO "C07"]
[WhiteElo "2272"]
[BlackElo "2393"]
[Annotator "NA"]
[PlyCount "65"]
[EventDate "2019.05.01"]
[EventType "team-tourn"]
[EventCountry "RUS"]
[SourceTitle "playchess.com"]
[Source "ChessBase"]
[SourceQuality "1"]
[TimeControl "40/5400+30:1800+30"]

1. e4 {[%emt 0:00:00]} e6 {[%emt 0:00:00]} 2. d4 {[%emt 0:00:00]} d5 {[%emt 0:00:00]} 3. Nd2 {[%emt 0:00:22]} c5 {[%emt 0:00:52]} 4. Ngf3 {[%emt 0:01:23]} Nf6 {[%emt 0:00:07]} 5. exd5 {[%emt 0:04:45]} exd5 {[%emt 0:00:25]} 6. Bb5+ {[%emt 0:02:10]} Bd7 {[%emt 0:00:06]} 7. Bxd7+ {[%emt 0:04:20]} Nbxd7 {[%emt 0:00:06]} 8. O-O {[%emt 0:00:29]} Be7 {[%emt 0:00:05]} 9. dxc5 {[%emt 0:00:41]} Nxc5 {[%emt 0:00:10]} 10. Nb3 {[%emt 0:11:06]} Nce4 {[%emt 0:00:10]} 11. Nfd4 {[%emt 0:01:08]} Qd7 {[%emt 0:00:43]} 12. h3 {[%emt 0:02:31]} O-O {[%emt 0:02:49]} 13. Qf3 {[%emt 0:03:22]} Rfe8 {[%emt 0:05:09]} 14. Be3 {[%emt 0:02:36]} b5 {[%emt 0:03:22]} 15. Rad1 {[%emt 0:04:38]} a5 {[%emt 0:02:45]} 16. a3 {[%emt 0:02:35]} Bd8 {[%emt 0:05:27]} 17. Nf5 {[%emt 0:02:13]} g6 {[%emt 0:01:10]} 18. Nfd4 {[%emt 0:11:39]} Bc7 {[%emt 0:02:51]} 19. Nc1 {[%emt 0:05:05]} Qd6 {[%emt 0:04:50]} 20. g3 {[%emt 0:00:48]} Qd7 {[%emt 0:00:17]} 21. Kg2 {[%emt 0:01:06]} Rac8 {[%emt 0:04:19]} 22. Nd3 {[%emt 0:03:25]} Kg7 {[%emt 0:00:39]} 23. c3 {[%emt 0:05:28]} h6 {[%emt 0:03:35]} 24. Rfe1 {[%emt 0:07:32]} Bd6 {[%emt 0:04:03]} 25. Nc2 {[%emt 0:06:41]} Rc6 {[%emt 0:20:03]} 26. Bd4 {[%emt 0:01:18]} Bb8 {[%emt 0:07:38]} 27. Nf4 {[%emt 0:04:48]} Bxf4 {[%emt 0:03:09]} 28. Qxf4 {[%emt 0:00:14]} Kh7 {[%emt 0:01:06]} 29. g4 {[%emt 0:03:24]} g5 {[%emt 0:06:13]} 30. Qf3 {[%emt 0:00:38]} Rd6 {[%emt 0:05:39]} 31. Qd3 {[%emt 0:02:36]} h5 {[%emt 0:08:28]} 32. Bxf6 {[%emt 0:02:11]} Rxf6 {[%emt 0:00:20]} 33. Rxe4 {[%emt 0:00:34]} 1-0

[Event "RUS-chTW Premier 2019"]
[Site "Sochi"]
[Date "2019.05.05"]
[Round "5.5"]
[White "Ushenina, Anna"]
[Black "Sudakova, Irina"]
[Result "1-0"]
[ECO "D45"]
[WhiteElo "2442"]
[BlackElo "2313"]
[Annotator "NA"]
[PlyCount "71"]
[EventDate "2019.05.01"]
[EventType "team-tourn"]
[EventCountry "RUS"]
[SourceTitle "playchess.com"]
[Source "ChessBase"]
[SourceQuality "1"]
[TimeControl "40/5400+30:1800+30"]

1. d4 {[%emt 0:00:00]} d5 {[%emt 0:00:00]} 2. c4 {[%emt 0:00:13]} e6 {[%emt 0:00:00]} 3. Nf3 {[%emt 0:00:15]} c6 {[%emt 0:00:08]} 4. e3 {[%emt 0:00:26]} Nf6 {[%emt 0:00:18]} 5. Nc3 {[%emt 0:00:17]} Nbd7 {[%emt 0:00:18]} 6. Qc2 {[%emt 0:00:06]} Bd6 {[%emt 0:00:39]} 7. Bd3 {[%emt 0:00:09]} O-O {[%emt 0:00:43]} 8. O-O {[%emt 0:00:04]} dxc4 {[%emt 0:00:39]} 9. Bxc4 {[%emt 0:00:05]} a6 {[%emt 0:00:23]} 10. Rd1 {[%emt 0:01:44]} c5 {[%emt 0:01:45]} 11. dxc5 {[%emt 0:02:23]} Bxc5 {[%emt 0:00:18]} 12. Bd3 {[%emt 0:01:35]} h6 {[%emt 0:05:07]} 13. Bd2 {[%emt 0:12:14]} Qe7 {[%emt 0:12:15]} 14. Rac1 {[%emt 0:28:18]} b6 {[%emt 0:07:16]} 15. Ne4 {[%emt 0:00:13]} Bb7 {[%emt 0:00:53]} 16. Nxc5 {[%emt 0:00:21]} Nxc5 {[%emt 0:00:31]} 17. Be2 {[%emt 0:00:41]} Be4 {[%emt 0:08:16]} 18. Qc3 {[%emt 0:04:18]} Bd5 {[%emt 0:11:55]} 19. Qa3 {[%emt 0:02:31]} Qb7 {[%emt 0:00:37]} 20. Bc3 {[%emt 0:05:47]} Nce4 {[%emt 0:05:41]} 21. Be1 {[%emt 0:06:16]} b5 {[%emt 0:05:14]} 22. Ne5 {[%emt 0:01:36]} Rfd8 {[%emt 0:08:55]} 23. f3 {[%emt 0:01:13]} Nd6 {[%emt 0:01:14]} 24. Ba5 {[%emt 0:06:06]} b4 {[%emt 0:05:13]} 25. Qxb4 {[%emt 0:01:01]} Qxb4 {[%emt 0:03:02]} 26. Bxb4 {[%emt 0:00:02]} Nfe8 {[%emt 0:00:36]} 27. Ba5 {[%emt 0:02:43]} Rdc8 {[%emt 0:00:43]} 28. b3 {[%emt 0:00:08]} Bb7 {[%emt 0:02:44]} 29. Nd7 {[%emt 0:02:16]} Nf5 {[%emt 0:02:03]} 30. Kf2 {[%emt 0:00:28]} Nf6 {[%emt 0:02:03]} 31. Nc5 {[%emt 0:01:08]} Rab8 {[%emt 0:01:10]} 32. Nxb7 {[%emt 0:05:52]} Rxc1 {[%emt 0:00:07]} 33. Rxc1 {[%emt 0:00:03]} Rxb7 {[%emt 0:00:05]} 34. Rc6 {[%emt 0:00:22]} Nd5 {[%emt 0:02:42]} 35. e4 {[%emt 0:03:27]} Nde7 {[%emt 0:00:42]} 36. Rb6 {[%emt 0:03:18]} 1-0

[Event "RUS-chTW Premier 2019"]
[Site "Sochi"]
[Date "2019.05.05"]
[Round "5.7"]
[White "Girya, Olga"]
[Black "Lysenko, Margarita"]
[Result "1-0"]
[ECO "E17"]
[WhiteElo "2449"]
[BlackElo "2211"]
[Annotator "NA"]
[PlyCount "75"]
[EventDate "2019.05.01"]
[EventType "team-tourn"]
[EventCountry "RUS"]
[SourceTitle "playchess.com"]
[Source "ChessBase"]
[SourceQuality "1"]
[TimeControl "40/5400+30:1800+30"]

1. d4 {[%emt 0:00:00]} Nf6 {[%emt 0:00:00]} 2. c4 {[%emt 0:00:00]} e6 {[%emt 0:00:00]} 3. Nf3 {[%emt 0:00:00]} b6 {[%emt 0:00:17]} 4. g3 {[%emt 0:00:01]} Bb7 {[%emt 0:00:23]} 5. Bg2 {[%emt 0:00:05]} Be7 {[%emt 0:00:36]} 6. O-O {[%emt 0:00:06]} O-O {[%emt 0:00:16]} 7. Re1 {[%emt 0:02:38]} c5 {[%emt 0:02:08]} 8. d5 {[%emt 0:00:24]} exd5 {[%emt 0:17:45]} 9. Nh4 {[%emt 0:00:06]} Ne4 {[%emt 0:20:17]} 10. cxd5 {[%emt 0:00:38]} Bxh4 {[%emt 0:03:49]} 11. Bxe4 {[%emt 0:00:07]} Bf6 {[%emt 0:05:33]} 12. Nc3 {[%emt 0:00:10]} d6 {[%emt 0:01:43]} 13. Bf4 {[%emt 0:01:24]} a6 {[%emt 0:01:50]} 14. Qc2 {[%emt 0:06:37]} g6 {[%emt 0:02:43]} 15. Bg2 {[%emt 0:00:27]} Be7 {[%emt 0:15:32]} 16. Rad1 {[%emt 0:03:21]} Bc8 {[%emt 0:05:54]} 17. Bh6 {[%emt 0:11:54]} Re8 {[%emt 0:00:25]} 18. Ne4 {[%emt 0:00:07]} Nd7 {[%emt 0:07:21]} 19. Qc3 {[%emt 0:01:06]} Nf6 {[%emt 0:01:26]} 20. f3 {[%emt 0:13:31]} Bf5 {[%emt 0:02:43]} 21. Rf1 {[%emt 0:00:12]} Nh5 {[%emt 0:05:08]} 22. g4 {[%emt 0:05:57]} Bxe4 {[%emt 0:00:45]} 23. fxe4 {[%emt 0:01:18]} Bf6 {[%emt 0:00:40]} 24. Qf3 {[%emt 0:00:58]} Bg7 {[%emt 0:01:30]} 25. Bc1 {[%emt 0:00:51]} Re5 {[%emt 0:02:44]} 26. Qxf7+ {[%emt 0:01:58]} Kh8 {[%emt 0:00:05]} 27. gxh5 {[%emt 0:00:05]} Rxh5 {[%emt 0:00:07]} 28. Rd3 {[%emt 0:05:28]} Be5 {[%emt 0:01:15]} 29. h3 {[%emt 0:06:10]} b5 {[%emt 0:00:32]} 30. Rdf3 {[%emt 0:00:44]} Bd4+ {[%emt 0:00:19]} 31. Kh1 {[%emt 0:00:23]} Bg7 {[%emt 0:00:18]} 32. Qb7 {[%emt 0:05:53]} b4 {[%emt 0:01:10]} 33. Rf7 {[%emt 0:01:41]} Be5 {[%emt 0:00:18]} 34. Qxa8 {[%emt 0:03:31]} Qxa8 {[%emt 0:00:26]} 35. Rf8+ {[%emt 0:00:04]} Qxf8 {[%emt 0:00:06]} 36. Rxf8+ {[%emt 0:00:03]} Kg7 {[%emt 0:00:07]} 37. Ra8 {[%emt 0:00:03]} g5 {[%emt 0:00:06]} 38. Kg1 {[%emt 0:00:37]} 1-0

[Event "RUS-chTW Premier 2019"]
[Site "Sochi"]
[Date "2019.05.05"]
[Round "5.8"]
[White "Geller, Anastasiya"]
[Black "Guseva, Marina"]
[Result "0-1"]
[ECO "D15"]
[WhiteElo "2187"]
[BlackElo "2402"]
[Annotator "NA"]
[PlyCount "74"]
[EventDate "2019.05.01"]
[EventType "team-tourn"]
[EventCountry "RUS"]
[SourceTitle "playchess.com"]
[Source "ChessBase"]
[SourceQuality "1"]
[TimeControl "40/5400+30:1800+30"]

1. d4 {[%emt 0:00:00]} d5 {[%emt 0:00:00]} 2. c4 {[%emt 0:00:00]} c6 {[%emt 0:00:00]} 3. Nf3 {[%emt 0:00:00]} Nf6 {[%emt 0:00:00]} 4. Nc3 {[%emt 0:00:05]} a6 {[%emt 0:00:13]} 5. cxd5 {[%emt 0:06:54]} cxd5 {[%emt 0:00:06]} 6. g3 {[%emt 0:03:49]} Nc6 {[%emt 0:01:44]} 7. Bg2 {[%emt 0:00:26]} e6 {[%emt 0:11:22]} 8. O-O {[%emt 0:01:05]} b5 {[%emt 0:00:08]} 9. Ne5 {[%emt 0:07:45]} Bb7 {[%emt 0:02:58]} 10. a3 {[%emt 0:10:58]} Be7 {[%emt 0:08:28]} 11. Be3 {[%emt 0:15:08]} O-O {[%emt 0:01:39]} 12. f3 {[%emt 0:03:37]} Rc8 {[%emt 0:07:34]} 13. Nxc6 {[%emt 0:01:23]} Bxc6 {[%emt 0:00:22]} 14. Bf2 {[%emt 0:05:35]} Nd7 {[%emt 0:05:27]} 15. Na2 {[%emt 0:01:01]} a5 {[%emt 0:06:27]} 16. Nc1 {[%emt 0:02:21]} Nb6 {[%emt 0:04:01]} 17. b3 {[%emt 0:00:46]} a4 {[%emt 0:00:09]} 18. b4 {[%emt 0:00:05]} Nc4 {[%emt 0:00:12]} 19. Nd3 {[%emt 0:00:07]} f6 {[%emt 0:01:44]} 20. e4 {[%emt 0:08:13]} e5 {[%emt 0:12:34]} 21. exd5 {[%emt 0:09:38]} Bxd5 {[%emt 0:03:17]} 22. Re1 {[%emt 0:05:29]} Bd6 {[%emt 0:13:10]} 23. dxe5 {[%emt 0:10:13]} Bxe5 {[%emt 0:00:58]} 24. Nxe5 {[%emt 0:00:20]} fxe5 {[%emt 0:00:38]} 25. Bc5 {[%emt 0:02:11]} Rf7 {[%emt 0:04:48]} 26. Qe2 {[%emt 0:01:01]} Bc6 {[%emt 0:06:21]} 27. Rad1 {[%emt 0:00:46]} Qf6 {[%emt 0:00:10]} 28. Rd3 {[%emt 0:00:20]} h6 {[%emt 0:02:10]} 29. Red1 {[%emt 0:00:48]} Re8 {[%emt 0:00:58]} 30. Qa2 {[%emt 0:01:40]} Qf5 {[%emt 0:01:20]} 31. Rd8 {[%emt 0:02:35]} Rxd8 {[%emt 0:00:30]} 32. Rxd8+ {[%emt 0:00:04]} Kh7 {[%emt 0:00:04]} 33. g4 {[%emt 0:00:56]} Qg6 {[%emt 0:03:50]} 34. h4 {[%emt 0:00:35]} Bxf3 {[%emt 0:00:54]} 35. Bxf3 {[%emt 0:01:01]} Rxf3 {[%emt 0:00:04]} 36. Qg2 {[%emt 0:00:21]} Rf4 {[%emt 0:02:26]} 37. Kh2 {[%emt 0:00:41]} Rxg4 {[%emt 0:00:27]} 0-1

[Event "RUS-chTW Premier 2019"]
[Site "Sochi"]
[Date "2019.05.05"]
[Round "5.9"]
[White "Schepetkova, Margarita"]
[Black "Nasybullina, Alfia"]
[Result "1-0"]
[ECO "E04"]
[WhiteElo "2224"]
[BlackElo "2065"]
[Annotator "NA"]
[PlyCount "119"]
[EventDate "2019.05.01"]
[EventType "team-tourn"]
[EventCountry "RUS"]
[SourceTitle "playchess.com"]
[Source "ChessBase"]
[SourceQuality "1"]
[TimeControl "40/5400+30:1800+30"]

1. d4 {[%emt 0:00:00]} Nf6 {[%emt 0:00:00]} 2. c4 {[%emt 0:00:00]} e6 {[%emt 0:00:00]} 3. g3 {[%emt 0:00:00]} d5 {[%emt 0:00:00]} 4. Bg2 {[%emt 0:00:00]} dxc4 {[%emt 0:00:02]} 5. Nf3 {[%emt 0:00:04]} Bd7 {[%emt 0:00:07]} 6. Ne5 {[%emt 0:01:54]} Bc6 {[%emt 0:00:07]} 7. Nxc6 {[%emt 0:00:08]} Nxc6 {[%emt 0:00:06]} 8. O-O {[%emt 0:00:44]} Qd7 {[%emt 0:00:49]} 9. e3 {[%emt 0:01:53]} Rd8 {[%emt 0:02:42]} 10. Qa4 {[%emt 0:00:34]} e5 {[%emt 0:01:30]} 11. Qxc4 {[%emt 0:03:47]} exd4 {[%emt 0:01:43]} 12. Qb5 {[%emt 0:00:30]} Rb8 {[%emt 0:01:56]} 13. Rd1 {[%emt 0:00:25]} a6 {[%emt 0:00:37]} 14. Qf1 {[%emt 0:01:23]} Be7 {[%emt 0:01:15]} 15. exd4 {[%emt 0:01:11]} Nxd4 {[%emt 0:02:48]} 16. Be3 {[%emt 0:05:41]} c5 {[%emt 0:00:28]} 17. Nc3 {[%emt 0:16:04]} O-O {[%emt 0:01:11]} 18. Bxd4 {[%emt 0:05:36]} cxd4 {[%emt 0:00:58]} 19. Nd5 {[%emt 0:01:20]} Nxd5 {[%emt 0:01:34]} 20. Rxd4 {[%emt 0:00:04]} Rfd8 {[%emt 0:04:53]} 21. Rxd5 {[%emt 0:03:37]} Qc7 {[%emt 0:00:20]} 22. Rc1 {[%emt 0:03:10]} Qb6 {[%emt 0:00:09]} 23. Qe2 {[%emt 0:00:35]} Bf6 {[%emt 0:02:36]} 24. b3 {[%emt 0:04:40]} h6 {[%emt 0:03:19]} 25. Qg4 {[%emt 0:05:20]} Bd4 {[%emt 0:10:29]} 26. Qf4 {[%emt 0:04:03]} g5 {[%emt 0:17:20]} 27. Qf5 {[%emt 0:00:25]} Qf6 {[%emt 0:04:56]} 28. Rc7 {[%emt 0:10:32]} b6 {[%emt 0:06:40]} 29. Qxf6 {[%emt 0:01:57]} Bxf6 {[%emt 0:00:09]} 30. Rf5 {[%emt 0:00:33]} Rd6 {[%emt 0:04:40]} 31. Bd5 {[%emt 0:00:27]} Rf8 {[%emt 0:00:06]} 32. Kg2 {[%emt 0:00:48]} a5 {[%emt 0:01:09]} 33. g4 {[%emt 0:02:15]} Kg7 {[%emt 0:00:13]} 34. a4 {[%emt 0:07:43]} Kg6 {[%emt 0:03:02]} 35. Rb7 {[%emt 0:01:31]} Kg7 {[%emt 0:00:42]} 36. h3 {[%emt 0:03:17]} Kg6 {[%emt 0:00:12]} 37. f4 {[%emt 0:03:33]} gxf4 {[%emt 0:09:52]} 38. h4 {[%emt 0:02:36]} Bxh4 {[%emt 0:08:52]} 39. Bxf7+ {[%emt 0:00:38]} Rxf7 {[%emt 0:00:05]} 40. Rfxf7 {[%emt 0:00:00]} Bf6 {[%emt 0:00:00]} 41. Rfd7 {[%emt 0:02:18]} Rc6 {[%emt 0:07:03]} 42. Rd3 {[%emt 0:00:32]} Bb2 {[%emt 0:06:11]} 43. Kf3 {[%emt 0:00:35]} Rf6 {[%emt 0:02:21]} 44. Rbd7 {[%emt 0:02:02]} Ba3 {[%emt 0:00:17]} 45. R3d5 {[%emt 0:01:52]} Bc5 {[%emt 0:01:03]} 46. Re5 {[%emt 0:00:28]} Rc6 {[%emt 0:02:07]} 47. Rd3 {[%emt 0:01:02]} Be3 {[%emt 0:00:41]} 48. Red5 {[%emt 0:00:04]} Rf6 {[%emt 0:10:14]} 49. Rd6 {[%emt 0:00:24]} Kg7 {[%emt 0:00:20]} 50. Rxf6 {[%emt 0:00:12]} Kxf6 {[%emt 0:00:04]} 51. Rd6+ {[%emt 0:00:07]} Kg7 {[%emt 0:00:07]} 52. Ke4 {[%emt 0:00:08]} Kh7 {[%emt 0:00:07]} 53. Kf5 {[%emt 0:00:19]} Kg7 {[%emt 0:01:08]} 54. Rd7+ {[%emt 0:00:25]} Kf8 {[%emt 0:00:17]} 55. Kg6 {[%emt 0:00:55]} Bc1 {[%emt 0:01:31]} 56. Kxh6 {[%emt 0:01:14]} Ke8 {[%emt 0:00:05]} 57. Rd1 {[%emt 0:00:20]} Be3 {[%emt 0:00:05]} 58. Kg6 {[%emt 0:00:04]} Kf8 {[%emt 0:00:23]} 59. Kf5 {[%emt 0:00:06]} Kf7 {[%emt 0:01:43]} 60. Rf1 {[%emt 0:00:08]} 1-0

[Event "RUS-chTW Premier 2019"]
[Site "Sochi"]
[Date "2019.05.05"]
[Round "5.10"]
[White "Mukhina, Jana"]
[Black "Trapeznikova, Darya"]
[Result "1/2-1/2"]
[ECO "C44"]
[WhiteElo "2098"]
[BlackElo "2090"]
[Annotator "NA"]
[PlyCount "155"]
[EventDate "2019.05.01"]
[EventType "team-tourn"]
[EventCountry "RUS"]
[SourceTitle "playchess.com"]
[Source "ChessBase"]
[SourceQuality "1"]
[TimeControl "40/5400+30:1800+30"]

1. e4 {[%emt 0:00:00]} e5 {[%emt 0:00:00]} 2. Nf3 {[%emt 0:00:00]} Nc6 {[%emt 0:00:00]} 3. d4 {[%emt 0:00:00]} exd4 {[%emt 0:00:06]} 4. Nxd4 {[%emt 0:00:05]} Bb4+ {[%emt 0:01:40]} 5. c3 {[%emt 0:00:20]} Bc5 {[%emt 0:00:05]} 6. Be3 {[%emt 0:00:05]} Bb6 {[%emt 0:00:11]} 7. Qg4 {[%emt 0:00:08]} Qf6 {[%emt 0:04:00]} 8. Qg3 {[%emt 0:00:07]} Nxd4 {[%emt 0:16:39]} 9. Bxd4 {[%emt 0:05:30]} Bxd4 {[%emt 0:00:34]} 10. cxd4 {[%emt 0:00:02]} Ne7 {[%emt 0:08:28]} 11. Nc3 {[%emt 0:01:03]} a6 {[%emt 0:10:27]} 12. Qxc7 {[%emt 0:07:28]} Qxd4 {[%emt 0:07:22]} 13. Rd1 {[%emt 0:11:37]} Qa7 {[%emt 0:03:42]} 14. Qe5 {[%emt 0:02:40]} f6 {[%emt 0:05:32]} 15. Qh5+ {[%emt 0:00:15]} Ng6 {[%emt 0:01:04]} 16. Bc4 {[%emt 0:02:25]} b5 {[%emt 0:02:19]} 17. Bb3 {[%emt 0:01:45]} Bb7 {[%emt 0:01:21]} 18. O-O {[%emt 0:01:16]} O-O-O {[%emt 0:03:50]} 19. a4 {[%emt 0:04:05]} b4 {[%emt 0:03:53]} 20. Nd5 {[%emt 0:03:31]} Ne5 {[%emt 0:03:51]} 21. a5 {[%emt 0:04:06]} Bxd5 {[%emt 0:02:15]} 22. Bxd5 {[%emt 0:02:44]} Kb8 {[%emt 0:00:28]} 23. Qe2 {[%emt 0:07:05]} Rc8 {[%emt 0:00:40]} 24. Kh1 {[%emt 0:01:03]} Rc5 {[%emt 0:01:18]} 25. Qd2 {[%emt 0:07:10]} Rb5 {[%emt 0:05:06]} 26. Rc1 {[%emt 0:00:38]} Rc8 {[%emt 0:00:52]} 27. Rxc8+ {[%emt 0:01:37]} Kxc8 {[%emt 0:00:04]} 28. Rc1+ {[%emt 0:00:11]} Rc5 {[%emt 0:00:53]} 29. Rd1 {[%emt 0:04:05]} Ng4 {[%emt 0:03:12]} 30. h3 {[%emt 0:01:13]} Rxd5 {[%emt 0:02:03]} 31. Rc1+ {[%emt 0:13:27]} Rc5 {[%emt 0:00:05]} 32. hxg4 {[%emt 0:00:14]} Rxc1+ {[%emt 0:00:58]} 33. Qxc1+ {[%emt 0:00:16]} Qc7 {[%emt 0:00:17]} 34. Qa1 {[%emt 0:03:00]} Qc5 {[%emt 0:06:05]} 35. f3 {[%emt 0:02:40]} Kc7 {[%emt 0:01:47]} 36. b3 {[%emt 0:03:03]} Qc3 {[%emt 0:01:01]} 37. Qg1 {[%emt 0:00:44]} Qc6 {[%emt 0:04:39]} 38. Qa7+ {[%emt 0:00:30]} Kc8 {[%emt 0:01:02]} 39. g3 {[%emt 0:12:29]} Qb5 {[%emt 0:00:49]} 40. Qa8+ {[%emt 0:00:00]} Kc7 {[%emt 0:00:00]} 41. Qa7+ {[%emt 0:01:18]} Kd6 {[%emt 0:00:35]} 42. Qa8 {[%emt 0:01:45]} Qxa5 {[%emt 0:06:51]} 43. Qf8+ {[%emt 0:00:34]} Kc7 {[%emt 0:00:07]} 44. Qf7 {[%emt 0:06:59]} Qb5 {[%emt 0:05:53]} 45. Kg2 {[%emt 0:09:02]} a5 {[%emt 0:01:27]} 46. e5 {[%emt 0:07:38]} Qxe5 {[%emt 0:01:25]} 47. Qc4+ {[%emt 0:00:17]} Kb6 {[%emt 0:00:58]} 48. Qg8 {[%emt 0:04:38]} Qb2+ {[%emt 0:07:22]} 49. Kh3 {[%emt 0:00:38]} Qc3 {[%emt 0:01:10]} 50. Qb8+ {[%emt 0:01:31]} Kc6 {[%emt 0:00:21]} 51. Qc8+ {[%emt 0:01:11]} Kd6 {[%emt 0:00:09]} 52. Qf8+ {[%emt 0:00:20]} Kc7 {[%emt 0:02:18]} 53. Qa8 {[%emt 0:01:13]} Qxb3 {[%emt 0:00:39]} 54. Qxa5+ {[%emt 0:00:18]} Kd6 {[%emt 0:00:11]} 55. Qb6+ {[%emt 0:00:20]} Ke7 {[%emt 0:00:35]} 56. Qc5+ {[%emt 0:00:44]} Ke6 {[%emt 0:03:18]} 57. f4 {[%emt 0:00:28]} Qd5 {[%emt 0:00:26]} 58. f5+ {[%emt 0:00:10]} Ke5 {[%emt 0:00:02]} 59. Qe7+ {[%emt 0:00:22]} Kd4 {[%emt 0:00:06]} 60. Qxb4+ {[%emt 0:00:06]} Kd3 {[%emt 0:01:45]} 61. Qb1+ {[%emt 0:01:03]} Kc4 {[%emt 0:01:20]} 62. Qa2+ {[%emt 0:00:38]} Kc5 {[%emt 0:00:26]} 63. Qa5+ {[%emt 0:00:27]} Kd6 {[%emt 0:00:21]} 64. Qb4+ {[%emt 0:00:59]} Kc7 {[%emt 0:00:21]} 65. Qf4+ {[%emt 0:00:28]} Kd8 {[%emt 0:00:32]} 66. Kh2 {[%emt 0:00:40]} Qe5 {[%emt 0:00:49]} 67. Qb4 {[%emt 0:00:32]} Ke8 {[%emt 0:01:23]} 68. Qc4 {[%emt 0:00:28]} d5 {[%emt 0:01:42]} 69. Qc8+ {[%emt 0:00:10]} Ke7 {[%emt 0:00:01]} 70. Qb7+ {[%emt 0:00:24]} Kd6 {[%emt 0:00:21]} 71. Qb6+ {[%emt 0:00:23]} Kd7 {[%emt 0:00:05]} 72. Qb7+ {[%emt 0:00:04]} Kd8 {[%emt 0:00:42]} 73. Qa8+ {[%emt 0:01:12]} Kc7 {[%emt 0:00:32]} 74. Qa5+ {[%emt 0:00:45]} Kc6 {[%emt 0:00:28]} 75. Qa6+ {[%emt 0:00:13]} Kc5 {[%emt 0:00:20]} 76. Qa5+ {[%emt 0:00:22]} Kc4 {[%emt 0:01:00]} 77. Qa4+ {[%emt 0:00:14]} Kc5 {[%emt 0:02:09]} 78. Qa5+ {[%emt 0:00:19]} 1/2-1/2